bitfinex-derivatives/quotes_BTCF0:USTF0_20240913
["timestamp","ask_amount","ask_price","bid_price","bid_amount"]
[1726239586310,0.00665852,58491.0,58483.0,0.3608]
[1726239586311,0.00665852,58491.0,58485.0,0.085486]
[1726239586514,0.085479,58491.0,58486.0,0.085484]
[1726239586810,0.085479,58491.0,58483.0,0.3608]
[1726239586811,0.085484,58488.0,58484.0,0.0925]
[1726239587011,0.085479,58491.0,58484.0,0.0925]
[1726239587209,0.085481,58490.0,58487.0,0.085483]
[1726239587617,0.170968,58488.0,58485.0,0.0867]
[1726239587902,0.00644282,58492.0,58486.0,0.001]
[1726239588108,0.085474,58494.0,58486.0,0.201]
[1726239588310,0.085476,58493.0,58490.0,0.08548]
[1726239588512,0.646268,58499.0,58490.0,0.08548]
[1726239588513,0.085477,58492.0,58490.0,0.08548]
[1726239588917,0.085479,58491.0,58487.0,0.086484]
[1726239589215,0.446279,58491.0,58488.0,0.085482]
[1726239589415,0.2,58495.0,58486.0,0.002]
[1726239589607,0.1192438,58498.0,58488.0,0.3608]
[1726239589808,0.085472,58496.0,58491.0,0.085478]
[1726239590003,0.085472,58496.0,58488.0,0.3608]
[1726239590305,0.3608,58506.0,58505.0,0.085458]
[1726239590513,0.45274213,58506.0,58500.0,0.446264]
[1726239590762,0.36728413,58506.0,58500.0,0.3608]
[1726239591014,0.36728413,58506.0,58504.0,0.085458]
[1726239591220,0.36728413,58506.0,58501.0,0.1838]
[1726239591517,0.36728413,58506.0,58505.0,0.001]
[1726239591717,0.45274113,58506.0,58505.0,0.001]
[1726239592234,0.085462,58503.0,58501.0,0.1838]
[1726239592519,0.085462,58502.0,58501.0,0.1858]
[1726239593115,0.36728413,58506.0,58501.0,0.1858]
[1726239593116,0.45274113,58506.0,58501.0,0.1858]
[1726239593420,0.36728413,58506.0,58501.0,0.1858]
[1726239594510,0.36728413,58506.0,58505.0,0.002]
[1726239594704,0.45274113,58506.0,58505.0,0.002]
[1726239595108,0.45274113,58506.0,58505.0,0.001]
[1726239595819,0.72274113,58506.0,58505.0,0.002]
[1726239596020,0.72274113,58506.0,58505.0,0.001]
[1726239597034,0.89365513,58506.0,58505.0,0.001]
[1726239597235,2.13205344,58506.0,58505.0,0.00033207]
[1726239597826,2.12659644,58506.0,58505.0,0.00033207]
[1726239598127,2.17814057,58506.0,58505.0,0.00033207]
[1726239598635,2.12638605,58506.0,58505.0,0.00033207]
[1726239598940,2.21184305,58506.0,58505.0,0.00133207]
[1726239600139,2.13184305,58506.0,58505.0,0.00133207]
[1726239600342,0.085464,58501.0,58489.0,0.1051]
[1726239600530,0.6308,58498.0,58489.0,0.1051]
[1726239600747,0.36728413,58506.0,58494.0,0.3608]
[1726239601042,0.36728413,58506.0,58493.0,0.27]
[1726239601043,0.1363069,58501.0,58498.0,0.085468]
[1726239601247,0.08546,58504.0,58493.0,0.6308]
[1726239601248,0.12594529,58500.0,58493.0,0.6308]
[1726239601539,0.11899232,58497.0,58496.0,0.085471]
[1726239601734,0.05837769,58497.0,58496.0,0.085471]
[1726239602534,0.05837769,58497.0,58493.0,0.634]
[1726239602730,0.17735674,58497.0,58494.0,0.085473]
[1726239602931,0.085474,58494.0,58493.0,0.001]
[1726239603130,0.2217809,58494.0,58493.0,0.001]
[1726239603335,0.2217809,58494.0,58489.0,0.1061]
[1726239603336,0.085476,58493.0,58489.0,0.1061]
[1726239603584,0.17737826,58492.0,58489.0,0.1061]
[1726239603752,0.05837769,58491.0,58490.0,0.08548]
[1726239604839,0.08548,58490.0,58489.0,0.1051]
[1726239605139,0.085481,58489.0,58488.0,0.10034]
[1726239605338,0.12586089,58489.0,58488.0,0.0981]
[1726239606040,0.05837769,58489.0,58488.0,0.0981]
[1726239606235,0.14385869,58489.0,58488.0,0.0981]
[1726239606446,0.05837769,58489.0,58488.0,1.48102]
[1726239606637,0.05837769,58489.0,58488.0,1.566503]
[1726239606831,0.05687769,58489.0,58488.0,1.566503]
[1726239607240,0.002,58490.0,58488.0,1.566503]
[1726239607241,0.11905524,58495.0,58490.0,0.08548]
[1726239607433,0.00648886,58501.0,58495.0,0.085473]
[1726239607434,0.11914238,58496.0,58495.0,0.085473]
[1726239607629,0.00648886,58501.0,58496.0,0.085471]
[1726239607630,0.11914238,58497.0,58496.0,0.085471]
[1726239608135,0.06783434,58500.0,58494.0,0.63312]
[1726239608136,0.3608,58504.0,58494.0,0.63312]
[1726239608331,0.3608,58504.0,58499.0,0.3608]
[1726239608532,0.11914238,58510.0,58499.0,0.3608]
[1726239608533,0.3608,58508.0,58500.0,0.1008]
[1726239608734,0.085461,58503.0,58500.0,0.1008]
[1726239609440,0.47994238,58508.0,58500.0,0.1008]
[1726239609833,0.48094238,58508.0,58500.0,0.1018]
[1726239610037,0.3618,58508.0,58500.0,0.1018]
[1726239610537,0.085456,58507.0,58500.0,0.1018]
[1726239610932,0.085456,58507.0,58500.0,0.1028]
[1726239611145,0.27,58507.0,58500.0,0.002]
[1726239611343,0.3608,58501.0,58500.0,0.002]
[1726239611538,0.446264,58501.0,58500.0,0.002]
[1726239611931,0.27,58507.0,58500.0,0.002]
[1726239611932,0.11914238,58506.0,58500.0,0.002]
[1726239612132,0.08546,58504.0,58500.0,0.001]
[1726239612337,0.08546,58504.0,58500.0,0.002]
[1726239612645,0.31914238,58506.0,58500.0,0.002]
[1726239612842,0.11914238,58506.0,58500.0,0.087465]
[1726239613044,0.12014238,58507.0,58502.0,0.085462]
[1726239613247,0.001,58506.0,58503.0,0.085461]
[1726239613504,0.12014238,58506.0,58503.0,0.085461]
[1726239613644,0.001,58506.0,58500.0,0.202]
[1726239613843,0.11935295,58505.0,58500.0,0.002]
[1726239614340,0.11935295,58504.0,58500.0,0.002]
[1726239614944,0.11935295,58504.0,58503.0,0.085461]
[1726239615151,0.11935295,58507.0,58500.0,0.201]
[1726239615445,0.001,58507.0,58506.0,0.3608]
[1726239615846,0.1203798,58507.0,58506.0,0.3608]
[1726239616047,0.13698991,58507.0,58506.0,0.3608]
[1726239616247,0.13598991,58507.0,58506.0,0.3608]
[1726239616950,0.2920044,58510.0,58507.0,0.085455]
[1726239616951,0.13598991,58508.0,58507.0,0.085455]
[1726239617247,0.12631153,58508.0,58507.0,0.085455]
[1726239617442,0.12631153,58508.0,58507.0,0.206]
[1726239618149,0.085455,58507.0,58506.0,0.001]
[1726239618448,0.12631153,58507.0,58506.0,0.3628]
[1726239618643,0.12631153,58507.0,58506.0,0.447257]
[1726239619057,0.32631153,58507.0,58499.0,0.3608]
[1726239619240,0.001,58508.0,58492.0,0.3608]
[1726239619241,0.2,58502.0,58492.0,0.3608]
[1726239619448,0.2,58493.0,58486.0,0.3608]
[1726239619647,0.11947529,58487.0,58486.0,0.446286]
[1726239619842,0.05803474,58487.0,58486.0,0.446286]
[1726239620043,0.06715563,58489.0,58488.0,0.085482]
[1726239620252,0.15278482,58493.0,58490.0,0.08548]
[1726239620448,0.15278482,58493.0,58488.0,0.085483]
[1726239620654,0.13653247,58490.0,58485.0,0.3608]
[1726239620849,0.13653247,58490.0,58486.0,0.085485]
[1726239621047,0.26152548,58490.0,58486.0,0.085485]
[1726239621244,0.12499301,58489.0,58487.0,0.085484]
[1726239621448,0.12499301,58488.0,58485.0,0.3608]
[1726239621750,0.12499301,58487.0,58485.0,0.3608]
[1726239621946,0.12499301,58486.0,58485.0,0.3608]
[1726239622149,0.20362631,58486.0,58485.0,0.3608]
[1726239622341,0.12493294,58486.0,58485.0,0.3608]
[1726239622756,0.12493294,58486.0,58485.0,0.447287]
[1726239622955,0.16981144,58496.0,58486.0,0.598406]
[1726239623201,0.48022912,58505.0,58495.0,0.27]
[1726239623454,0.48022912,58505.0,58496.0,0.08547]
[1726239623752,0.3608,58505.0,58499.0,0.085466]
[1726239623951,0.3608,58505.0,58490.0,0.3608]
[1726239623952,0.085463,58502.0,58490.0,0.6308]
[1726239624151,0.085463,58502.0,58495.0,0.085471]
[1726239624457,0.085464,58501.0,58495.0,0.085472]
[1726239624656,0.00684099,58505.0,58500.0,0.7216]
[1726239624857,0.83563082,58514.0,58501.0,0.1008]
[1726239624858,0.11942912,58508.0,58501.0,0.1008]
[1726239625054,0.21452912,58511.0,58501.0,0.1008]
[1726239625447,0.085457,58506.0,58502.0,0.085461]
[1726239626555,0.22156343,58511.0,58503.0,0.085461]
[1726239626949,0.085455,58507.0,58501.0,0.3016]
[1726239627260,0.001,58502.0,58501.0,0.199]
[1726239627458,0.001,58502.0,58500.0,0.72496]
[1726239627459,0.085464,58501.0,58500.0,0.72496]
[1726239627758,0.085471,58496.0,58495.0,0.001]
[1726239628256,0.085484,58487.0,58486.0,0.3608]
[1726239628562,0.085484,58487.0,58477.0,0.35551]
[1726239628563,0.3608,58487.0,58477.0,0.08551]
[1726239628854,0.085493,58481.0,58477.0,0.08551]
[1726239629054,0.085491,58483.0,58477.0,0.08551]
[1726239629258,0.27,58486.0,58477.0,0.08551]
[1726239629451,0.11942912,58495.0,58484.0,0.3608]
[1726239629755,0.001,58496.0,58484.0,0.3608]
[1726239629756,0.001,58496.0,58488.0,0.27]
[1726239630151,0.001,58496.0,58489.0,0.3608]
[1726239630369,0.001,58496.0,58495.0,0.3608]
[1726239630370,0.00792901,58496.0,58495.0,0.3608]
[1726239630547,0.001,58496.0,58495.0,0.446273]
[1726239631151,0.11942912,58501.0,58495.0,0.446273]
[1726239631552,0.11942912,58501.0,58495.0,0.085473]
[1726239631746,0.27,58498.0,58490.0,0.0975]
[1726239631953,0.38942912,58498.0,58489.0,0.3608]
[1726239632154,0.085476,58493.0,58489.0,0.3608]
[1726239632354,0.11942912,58494.0,58489.0,0.3608]
[1726239632552,0.27,58493.0,58489.0,0.3608]
[1726239632750,0.11942912,58490.0,58483.0,0.1001]
[1726239632954,0.24660883,58489.0,58483.0,0.1001]
[1726239633145,0.14110883,58488.0,58483.0,0.1001]
[1726239633347,0.05562583,58487.0,58483.0,0.1001]
[1726239633550,0.05562583,58486.0,58483.0,0.1001]
[1726239633760,0.085483,58488.0,58483.0,0.1001]
[1726239633957,0.14108324,58487.0,58483.0,0.1001]
[1726239634264,0.06413547,58486.0,58477.0,0.08551]
[1726239634452,0.27,58483.0,58477.0,0.08551]
[1726239634650,0.05559824,58482.0,58477.0,0.08551]
[1726239634855,0.085496,58479.0,58477.0,0.08551]
[1726239635061,0.14109524,58478.0,58477.0,0.08551]
[1726239635261,0.05510438,58478.0,58477.0,0.08551]
[1726239635754,0.05510438,58478.0,58477.0,0.08651]
[1726239635961,0.14060138,58478.0,58477.0,0.08751]
[1726239636458,0.14060138,58478.0,58472.0,0.08551]
[1726239636459,0.05510438,58478.0,58472.0,0.08551]
[1726239636659,0.05510438,58477.0,58472.0,0.08551]
[1726239636858,0.001,58478.0,58473.0,0.27]
[1726239637164,0.001,58478.0,58473.0,0.55751]
[1726239637347,0.001,58478.0,58477.0,0.085499]
[1726239637551,0.001,58478.0,58477.0,0.446299]
[1726239637955,0.05625043,58478.0,58474.0,0.08551]
[1726239638162,0.001,58478.0,58474.0,0.08551]
[1726239638356,0.013,58478.0,58472.0,0.08651]
[1726239638662,0.0855,58477.0,58472.0,0.08651]
[1726239638865,0.0855,58477.0,58472.0,0.08551]
[1726239639262,0.013,58478.0,58472.0,0.08651]
[1726239639463,0.013,58478.0,58472.0,0.08751]
[1726239639961,0.085503,58475.0,58472.0,0.08751]
[1726239640162,0.27,58475.0,58472.0,0.08751]
[1726239640365,0.085505,58473.0,58472.0,0.08751]
[1726239641060,0.085505,58473.0,58472.0,0.08651]
[1726239641267,0.085505,58473.0,58472.0,0.08751]
[1726239641659,0.085505,58473.0,58472.0,0.08651]
[1726239641856,0.097505,58473.0,58472.0,0.08751]
[1726239642064,0.097505,58473.0,58472.0,0.002]
[1726239642658,0.458305,58473.0,58472.0,0.002]
[1726239642860,1.742395,58473.0,58472.0,0.002]
[1726239643062,0.085521,58463.0,58457.0,0.2064]
[1726239643265,0.3608,58468.0,58457.0,0.4064]
[1726239643467,0.446313,58468.0,58457.0,0.4064]
[1726239643669,0.446313,58468.0,58460.0,0.2]
[1726239644069,0.38070452,58473.0,58467.0,0.2]
[1726239644377,0.012,58473.0,58472.0,0.446306]
[1726239644560,0.004,58489.0,58483.0,0.08549]
[1726239644768,0.00699598,58489.0,58487.0,0.2]
[1726239645074,0.3608,58492.0,58487.0,0.2]
[1726239645274,0.36783479,58492.0,58487.0,0.5608]
[1726239645465,0.56783479,58492.0,58479.0,0.3608]
[1726239645663,0.085486,58486.0,58479.0,0.3608]
[1726239645863,0.085486,58486.0,58483.0,0.001]
[1726239647072,0.003,58486.0,58483.0,0.002]
[1726239648069,0.01004593,58486.0,58483.0,0.001]
[1726239648277,0.003,58486.0,58483.0,0.001]
[1726239648969,0.017,58486.0,58483.0,0.001]
[1726239649368,0.017,58486.0,58484.0,0.3608]
[1726239649972,0.017,58486.0,58483.0,0.001]
[1726239650570,0.016,58486.0,58484.0,0.001]
[1726239650873,0.085487,58485.0,58484.0,0.001]
[1726239651174,0.085497,58479.0,58474.0,0.08551]
[1726239651371,0.598447,58485.0,58474.0,0.08551]
[1726239651372,0.2,58480.0,58474.0,0.08551]
[1726239651573,0.085502,58476.0,58474.0,0.08551]
[1726239651767,0.285502,58475.0,58474.0,0.08551]
[1726239652078,0.3013,58479.0,58468.0,0.171021]
[1726239652376,0.3013,58479.0,58469.0,0.44631]
[1726239652377,0.085499,58477.0,58469.0,0.44631]
[1726239652970,0.2,58474.0,58469.0,0.44631]
[1726239653274,0.285509,58470.0,58469.0,0.08551]
[1726239653478,0.285509,58470.0,58463.0,0.44631]
[1726239653672,0.085514,58467.0,58463.0,0.44631]
[1726239653871,0.2,58470.0,58463.0,0.44631]
[1726239654061,0.3608,58472.0,58467.0,0.2]
[1726239655168,0.002,58470.0,58469.0,0.001]
[1726239655363,0.002,58470.0,58469.0,0.447311]
[1726239656478,0.014,58472.0,58471.0,0.085508]
[1726239656775,0.014,58472.0,58471.0,0.2]
[1726239656776,0.016,58472.0,58471.0,0.2]
[1726239656973,0.002,58472.0,58471.0,0.2]
[1726239657276,0.002,58472.0,58471.0,0.285508]
[1726239657472,0.36789006,58478.0,58473.0,0.085503]
[1726239657667,0.45338706,58478.0,58474.0,0.085502]
[1726239658169,0.00874573,58487.0,58476.0,0.5608]
[1726239658374,0.446284,58488.0,58482.0,0.5608]
[1726239658570,0.085484,58488.0,58484.0,0.085488]
[1726239658774,0.085484,58488.0,58487.0,0.3608]
[1726239658775,0.00705402,58488.0,58487.0,0.3608]
[1726239658975,0.085478,58492.0,58487.0,0.3608]
[1726239659174,0.085474,58494.0,58491.0,0.085478]
[1726239659364,0.08547,58497.0,58493.0,0.3608]
[1726239659565,0.446266,58500.0,58495.0,0.085473]
[1726239659775,0.36765998,58500.0,58496.0,0.08547]
[1726239659977,0.00685998,58500.0,58496.0,0.08547]
[1726239660164,0.2,58504.0,58499.0,0.3608]
[1726239660373,0.11942912,58514.0,58505.0,0.085458]
[1726239660569,0.2576233,58513.0,58503.0,0.1002]
[1726239660773,0.2,58506.0,58499.0,0.3608]
[1726239660974,0.2,58506.0,58495.0,0.001]
[1726239660975,0.016,58500.0,58495.0,0.001]
[1726239662582,0.002,58500.0,58498.0,0.3608]
[1726239662890,0.00691437,58506.0,58503.0,0.001]
[1726239663084,0.3294,58513.0,58506.0,0.085456]
[1726239663383,0.002,58513.0,58510.0,0.3608]
[1726239663578,0.1997997,58517.0,58510.0,0.3608]
[1726239663786,0.1997997,58517.0,58515.0,0.3608]
[1726239663787,0.00692684,58517.0,58515.0,0.3608]
[1726239664086,0.00692684,58517.0,58512.0,0.2]
[1726239664087,0.085441,58517.0,58512.0,0.2]
[1726239664473,0.085431,58524.0,58515.0,0.3608]
[1726239664781,0.00861237,58525.0,58520.0,0.3608]
[1726239664979,0.2,58522.0,58520.0,0.3608]
[1726239665182,0.085436,58520.0,58515.0,0.3608]
[1726239665626,0.00865684,58521.0,58515.0,0.3608]
[1726239665772,0.3608,58520.0,58509.0,0.085452]
[1726239666277,0.016,58517.0,58512.0,0.001]
[1726239666576,0.016,58517.0,58516.0,0.285442]
[1726239666776,0.016,58517.0,58512.0,0.001]
[1726239666777,0.016,58517.0,58512.0,0.201]
[1726239667176,0.3628,58520.0,58516.0,0.2]
[1726239667678,0.3628,58520.0,58519.0,0.446238]
[1726239667679,0.002,58520.0,58519.0,0.446238]
[1726239668700,0.085421,58531.0,58519.0,0.446238]
[1726239668701,0.085412,58537.0,58520.0,0.51264]
[1726239668952,0.33445032,58535.0,58531.0,0.2]
[1726239669071,0.33445032,58535.0,58525.0,0.446228]
[1726239669276,0.33445032,58535.0,58525.0,0.5608]
[1726239669474,0.33445032,58535.0,58529.0,0.2]
[1726239669675,0.41986432,58535.0,58529.0,0.2]
[1726239669874,0.33645032,58535.0,58531.0,0.08542]
[1726239670077,0.42186532,58535.0,58529.0,0.2]
[1726239670376,0.35045032,58535.0,58525.0,0.5608]
[1726239670577,0.3608,58532.0,58521.0,0.311]
[1726239670783,0.085422,58530.0,58529.0,0.001]
[1726239671177,0.646218,58533.0,58529.0,0.001]
[1726239671382,0.3608,58533.0,58529.0,0.001]
[1726239671574,0.370844,58530.0,58529.0,0.001]
[1726239671780,0.370844,58530.0,58529.0,0.00029295]
[1726239671781,0.285422,58530.0,58529.0,0.00029295]
[1726239672282,0.085422,58530.0,58529.0,8.637e-05]
[1726239672578,0.085423,58529.0,58525.0,0.001]
[1726239672784,0.3608,58526.0,58525.0,0.001]
[1726239673185,0.446227,58526.0,58525.0,0.001]
[1726239673383,0.446227,58526.0,58518.0,0.1014]
[1726239673582,0.08543,58524.0,58518.0,0.1014]
[1726239673782,0.3608,58520.0,58518.0,0.1014]
[1726239674082,0.085438,58519.0,58518.0,0.1014]
[1726239674284,0.085438,58519.0,58515.0,0.1019]
[1726239674783,0.085446,58514.0,58508.0,0.3608]
[1726239674990,0.285446,58514.0,58508.0,0.3608]
[1726239675285,0.3608,58509.0,58504.0,0.1078]
[1726239675789,0.2,58518.0,58506.0,0.3608]
[1726239676088,0.48022912,58520.0,58512.0,0.27]
[1726239676089,0.3608,58520.0,58512.0,0.27]
[1726239676295,0.3608,58520.0,58519.0,0.085438]
[1726239676584,0.3608,58520.0,58517.0,0.08544]
[1726239676779,0.006969,58521.0,58518.0,0.1078]
[1726239676987,0.6882,58526.0,58518.0,0.1078]
[1726239677178,0.085438,58519.0,58511.0,0.3608]
[1726239677378,0.6308,58520.0,58509.0,0.1078]
[1726239677379,0.085451,58510.0,58509.0,0.1078]
[1726239677585,0.9916,58512.0,58506.0,0.002]
[1726239677783,0.3608,58507.0,58506.0,0.002]
[1726239678289,0.446255,58507.0,58506.0,0.002]
[1726239678481,0.716255,58507.0,58506.0,0.002]
[1726239678687,0.3608,58507.0,58506.0,0.002]
[1726239679395,0.27,58509.0,58506.0,0.001]
[1726239679778,0.27,58509.0,58500.0,0.085464]
[1726239679985,0.085455,58507.0,58497.0,0.085469]
[1726239680182,0.098455,58507.0,58506.0,0.001]
[1726239680589,0.085455,58507.0,58498.0,0.085468]
[1726239680783,0.085455,58507.0,58506.0,0.001]
[1726239681191,0.085455,58507.0,58506.0,0.002]
[1726239681581,1.29207969,58507.0,58506.0,0.002]
[1726239682488,0.085462,58502.0,58489.0,0.1037]
[1726239682690,0.3608,58490.0,58489.0,0.1037]
[1726239682990,0.3608,58496.0,58489.0,0.1037]
[1726239683692,0.446271,58496.0,58489.0,0.1047]
[1726239683891,0.085474,58495.0,58489.0,0.1047]
[1726239684083,0.3608,58496.0,58489.0,0.1057]
[1726239684489,0.3608,58496.0,58491.0,0.085478]
[1726239685493,0.3608,58496.0,58492.0,0.085477]
[1726239685797,0.3608,58496.0,58495.0,0.085473]
[1726239685798,0.013,58496.0,58495.0,0.085473]
[1726239686187,0.004,58513.0,58495.0,1.38284]
[1726239686391,0.004,58519.0,58507.0,0.3608]
[1726239686595,0.3654,58526.0,58515.0,0.085443]
[1726239686596,0.004,58525.0,58515.0,0.085443]
[1726239686894,0.004,58525.0,58516.0,0.085441]
[1726239687088,0.004,58525.0,58511.0,0.27]
[1726239687391,0.089429,58525.0,58517.0,0.08544]
[1726239687604,0.013,58519.0,58517.0,0.08544]
[1726239687901,0.013,58519.0,58515.0,0.001]
[1726239688485,0.013,58519.0,58515.0,0.086443]
[1726239688884,0.013,58519.0,58515.0,0.001]
[1726239689089,0.3608,58518.0,58515.0,0.001]
[1726239689392,0.3608,58518.0,58513.0,0.085446]
[1726239689695,0.3608,58518.0,58517.0,0.001]
[1726239690086,0.3608,58518.0,58517.0,0.08644]
[1726239690288,0.00724981,58525.0,58520.0,0.085435]
[1726239690483,0.3608,58526.0,58520.0,0.085435]
[1726239690894,0.3608,58526.0,58517.0,0.3608]
[1726239691197,0.3608,58526.0,58522.0,0.085432]
[1726239691392,0.3608,58526.0,58525.0,0.085429]
[1726239691597,0.3608,58526.0,58521.0,0.085434]
[1726239691895,0.3608,58526.0,58517.0,0.3608]
[1726239692090,0.27,58522.0,58515.0,0.001]
[1726239692309,0.27,58522.0,58517.0,0.002]
[1726239692310,0.001,58518.0,58517.0,0.002]
[1726239692488,0.001,58518.0,58517.0,0.3628]
[1726239692688,0.001,58518.0,58517.0,0.08744]
[1726239693081,0.08543,58524.0,58521.0,0.001]
[1726239693286,0.085433,58522.0,58521.0,0.001]
[1726239693494,0.41677966,58522.0,58521.0,0.001]
[1726239693990,0.41677966,58522.0,58517.0,0.001]
[1726239694293,0.001,58518.0,58517.0,0.002]
[1726239694496,0.3618,58518.0,58517.0,0.002]
[1726239694697,0.6318,58518.0,58517.0,0.002]
[1726239694894,0.77854753,58518.0,58517.0,0.002]
[1726239695090,0.50854753,58518.0,58517.0,0.002]
[1726239695286,0.447239,58518.0,58517.0,0.002]
[1726239695484,0.717239,58518.0,58517.0,0.002]
[1726239696293,0.06216975,58518.0,58517.0,0.002]
[1726239696498,0.001,58518.0,58517.0,0.08744]
[1726239696691,0.001,58522.0,58521.0,0.001]
[1726239697394,0.085426,58527.0,58519.0,0.1016]
[1726239697592,0.06150565,58526.0,58519.0,0.187037]
[1726239697787,0.085428,58526.0,58519.0,0.187037]
[1726239698088,0.00735612,58527.0,58521.0,0.001]
[1726239698089,0.001,58522.0,58521.0,0.001]
[1726239699300,0.086433,58522.0,58521.0,0.001]
[1726239699496,0.086433,58522.0,58521.0,0.002]
[1726239699997,0.06230589,58522.0,58521.0,0.002]
[1726239700295,0.001,58522.0,58521.0,0.002]
[1726239700487,0.3608,58525.0,58521.0,0.001]
[1726239700694,0.06138086,58524.0,58521.0,0.001]
[1726239700997,0.36820989,58525.0,58521.0,0.001]
[1726239701194,0.001,58522.0,58521.0,0.002]
[1726239701793,0.085433,58522.0,58521.0,0.002]
[1726239701999,0.36920989,58525.0,58521.0,0.002]
[1726239702706,0.085433,58522.0,58521.0,0.002]
[1726239703804,0.23220889,58522.0,58521.0,0.002]
[1726239704002,0.06234289,58522.0,58521.0,0.002]
[1726239704693,0.23320889,58522.0,58521.0,0.002]
[1726239704901,0.085455,58507.0,58504.0,0.0086]
[1726239705097,0.6308,58507.0,58495.0,0.2085]
[1726239705302,0.085463,58502.0,58495.0,0.293972]
[1726239705503,0.3608,58501.0,58500.0,0.085465]
[1726239705707,0.3608,58501.0,58495.0,0.2085]
[1726239705918,0.3608,58501.0,58497.0,0.085469]
[1726239706815,0.3608,58501.0,58495.0,0.293972]
[1726239707105,0.085474,58494.0,58493.0,0.00228]
[1726239707307,0.085474,58494.0,58476.0,0.6354]
[1726239707308,0.06055005,58494.0,58487.0,0.085483]
[1726239707502,0.6308,58496.0,58488.0,0.085483]
[1726239707503,0.06055005,58493.0,58488.0,0.085483]
[1726239707695,0.06168892,58492.0,58488.0,0.085483]
[1726239707900,0.47992685,58496.0,58484.0,0.186689]
[1726239708098,0.06167432,58495.0,58484.0,0.186689]
[1726239708302,0.06167432,58494.0,58486.0,0.3608]
[1726239708507,0.36820319,58501.0,58492.0,0.3608]
[1726239708808,0.003,58494.0,58493.0,0.085475]
[1726239709900,0.003,58494.0,58493.0,1.198355]
[1726239710412,0.005,58494.0,58493.0,1.199355]
[1726239710601,0.005,58494.0,58493.0,1.387031]
[1726239710796,0.085453,58509.0,58500.0,0.27]
[1726239710998,0.20457985,58509.0,58504.0,0.3608]
[1726239711305,0.20457985,58509.0,58506.0,0.085456]
[1726239711306,0.085453,58509.0,58506.0,0.085456]
[1726239711506,0.11912685,58514.0,58504.0,0.3608]
[1726239711507,0.20457285,58514.0,58504.0,0.3608]
[1726239711708,0.085455,58507.0,58504.0,0.3608]
[1726239711908,0.11912685,58515.0,58504.0,0.446258]
[1726239712206,0.085447,58513.0,58508.0,0.085454]
[1726239712400,0.085447,58513.0,58504.0,0.3608]
[1726239712401,0.085451,58510.0,58504.0,0.3608]
[1726239712701,0.085451,58510.0,58506.0,0.086456]
[1726239712702,0.06436113,58509.0,58506.0,0.086456]
[1726239712895,0.087452,58509.0,58506.0,0.001]
[1726239713100,0.085455,58507.0,58506.0,0.001]
[1726239714400,0.085455,58507.0,58504.0,0.3618]
[1726239714601,0.085455,58507.0,58506.0,0.001]
[1726239714996,0.09271385,58507.0,58506.0,0.001]
[1726239715203,0.00725885,58507.0,58506.0,0.001]
[1726239715404,0.085451,58510.0,58506.0,0.001]
[1726239715713,0.085452,58509.0,58506.0,0.002]
[1726239716397,0.085455,58507.0,58506.0,0.001]
[1726239716816,0.085455,58508.0,58506.0,0.001]
[1726239717007,0.085455,58507.0,58506.0,0.001]
[1726239717507,0.3608,58513.0,58506.0,0.002]
[1726239717707,0.27716664,58516.0,58506.0,0.002]
[1726239717914,0.085449,58511.0,58506.0,0.002]
[1726239718511,0.085451,58510.0,58506.0,0.002]
[1726239719013,0.27716664,58516.0,58506.0,0.002]
[1726239719365,0.08545,58511.0,58506.0,0.002]
[1726239719507,0.085451,58510.0,58506.0,0.001]
[1726239719705,0.085453,58509.0,58506.0,0.002]
[1726239720202,0.085454,58508.0,58506.0,0.002]
[1726239720407,0.085455,58507.0,58506.0,0.002]
[1726239720602,0.23308506,58507.0,58506.0,0.002]
[1726239721006,0.14763006,58507.0,58506.0,0.001]
[1726239721206,0.14763006,58507.0,58506.0,0.002]
[1726239721706,0.14763006,58507.0,58506.0,0.001]
[1726239721911,0.14763006,58507.0,58506.0,0.002]
[1726239722100,0.23308506,58507.0,58506.0,0.002]
[1726239722300,0.24027423,58507.0,58506.0,0.002]
[1726239722702,0.24027423,58507.0,58491.0,0.004]
[1726239722703,1.61817163,58507.0,58491.0,0.004]
[1726239723003,0.6308,58497.0,58488.0,0.3608]
[1726239723200,0.42711537,58506.0,58488.0,0.3608]
[1726239723201,0.18090391,58496.0,58493.0,0.3608]
[1726239723404,0.11918286,58502.0,58495.0,0.27]
[1726239723708,0.06196892,58501.0,58499.0,0.3608]
[1726239723907,0.11918427,58503.0,58500.0,0.102]
[1726239724216,0.085465,58500.0,58491.0,0.001]
[1726239724415,0.085477,58492.0,58491.0,0.001]
[1726239724606,0.085477,58492.0,58491.0,0.002]
[1726239724831,0.14716582,58492.0,58491.0,0.001]
[1726239725019,0.14716582,58492.0,58485.0,0.102]
[1726239725219,0.085477,58492.0,58486.0,0.085485]
[1726239725406,0.085477,58492.0,58489.0,0.3608]
[1726239725609,0.085471,58496.0,58489.0,0.446281]
[1726239725802,0.085471,58496.0,58491.0,0.001]
[1726239725803,0.14711435,58496.0,58491.0,0.001]
[1726239726004,0.412861,58504.0,58495.0,0.3608]
[1726239726213,0.085464,58501.0,58496.0,0.1079]
[1726239726417,0.2,58499.0,58495.0,0.3608]
[1726239726601,0.085468,58498.0,58495.0,0.3608]
[1726239726803,0.085471,58496.0,58495.0,0.3608]